bitfinex/quotes_SOLUSD_20251116
["timestamp","ask_amount","ask_price","bid_price","bid_amount"]
[1763280197749,2.4089639,142.37,142.36,0.1]
[1763280198053,0.7,142.37,142.36,0.1]
[1763280200446,0.9089639,142.38,142.36,0.1]
[1763280201647,3.67187284,142.41,142.37,0.68]
[1763280201851,24.3601639,142.41,142.37,0.68]
[1763280202541,25.0401639,142.41,142.37,0.68]
[1763280202855,0.68,142.4,142.37,0.68]
[1763280203940,3.67139323,142.44,142.37,2.3889639]
[1763280204144,1.7089639,142.42,142.37,2.3889639]
[1763280204345,1.7089639,142.42,142.38,0.68]
[1763280204546,2.3889639,142.42,142.38,0.68]
[1763280204852,2.3889639,142.41,142.37,0.68]
[1763280205235,1.7089639,142.41,142.37,0.68]
[1763280205869,2.3889639,142.42,142.37,7.70364074]
[1763280206064,2.3889639,142.42,142.37,8.73260464]
[1763280206237,2.3889639,142.42,142.38,0.68]
[1763280206435,126.8512,142.43,142.38,2.3889639]
[1763280206436,129.2401639,142.43,142.38,2.3889639]
[1763280206852,129.2401639,142.43,142.39,0.68]
[1763280207253,0.68,142.42,142.39,0.68]
[1763280207447,126.8512,142.43,142.39,2.3889639]
[1763280207944,126.8512,142.43,142.4,0.68]
[1763280208251,127.5312,142.43,142.4,0.68]
[1763280209145,2.3889639,142.42,142.38,1.7089639]
[1763280209542,2.3889639,142.42,142.39,0.68]
[1763280209961,129.2401639,142.43,142.39,0.68]
[1763280210166,2.3889639,142.42,142.37,7.02384262]
[1763280210472,1.7089639,142.4,142.36,0.1]
[1763280210840,2.3889639,142.39,142.36,0.1]
[1763280211944,25.0401639,142.4,142.36,0.78]
[1763280212882,2.3889639,142.39,142.36,0.1]
[1763280214164,104.2,142.38,142.36,0.1]
[1763280215661,104.2,142.38,142.36,0.78]
[1763280216181,104.2,142.38,142.36,0.1]
[1763280216358,104.2,142.38,142.36,0.78]
[1763280216670,104.2,142.38,142.36,0.1]
[1763280217267,104.2,142.38,142.36,9.51337902]
[1763280218167,104.2,142.38,142.36,7.80441512]
[1763280218371,104.2,142.38,142.36,0.1]
[1763280220251,2.3889639,142.37,142.36,0.1]
[1763280221456,0.68,142.37,142.36,0.1]
[1763280221657,2.3889639,142.37,142.36,0.1]
[1763280223274,105.9089639,142.38,142.36,0.1]
[1763280223575,106.6089639,142.38,142.36,0.1]
[1763280223763,104.9,142.38,142.36,0.1]
[1763280224668,2.4089639,142.37,142.36,0.1]
[1763280233086,68.54725022,142.46,142.36,0.77]
[1763280233087,1.99999999,142.45,142.36,0.77]
[1763280233384,9.78882769,142.42,142.36,2.4789639]
[1763280233585,1.7089639,142.41,142.37,2.3789639]
[1763280233784,0.7,142.42,142.38,1.7089639]
[1763280233967,0.7,142.42,142.39,0.67]
[1763280234172,6.48577801,142.46,142.4,1.7089639]
[1763280234173,0.7,142.45,142.4,1.7089639]
[1763280234363,2.4089639,142.45,142.4,1.7089639]
[1763280234563,2.4089639,142.47,142.42,1.7089639]
[1763280234879,22.6512,142.46,142.43,1.7089639]
[1763280235086,23.3512,142.47,142.43,1.7089639]
[1763280235290,23.3512,142.47,142.43,2.3789639]
[1763280235676,25.0601639,142.47,142.43,2.3789639]
[1763280236785,1.7089639,142.44,142.38,0.67]
[1763280236995,25.0601639,142.43,142.38,1.7089639]
[1763280237494,9.78882769,142.46,142.4,1.7089639]
[1763280237495,2.4089639,142.45,142.4,1.7089639]
[1763280237689,25.0601639,142.45,142.41,1.7089639]
[1763280238173,2.4089639,142.44,142.39,2.3789639]
[1763280238487,1.7089639,142.43,142.39,2.3789639]
[1763280238690,2.4089639,142.43,142.39,2.3789639]
[1763280238989,2.4089639,142.43,142.39,0.67]
[1763280240694,2.4089639,142.43,142.39,2.3789639]
[1763280240895,1.7089639,142.43,142.39,2.3789639]
[1763280241066,2.4089639,142.43,142.39,2.3789639]
[1763280242175,106.6089639,142.42,142.37,1.7089639]
[1763280242479,104.2,142.41,142.37,1.7089639]
[1763280242695,104.9,142.41,142.37,2.3789639]
[1763280242900,106.6089639,142.41,142.37,1.8789639]
[1763280243195,105.9089639,142.41,142.37,1.2089639]
[1763280243382,104.2,142.41,142.39,1.7089639]
[1763280243779,104.2,142.41,142.39,2.3789639]
[1763280247101,104.2,142.41,142.39,0.67]
[1763280247275,104.2,142.41,142.39,2.3789639]
[1763280248285,22.6512,142.45,142.4,2.3789639]
[1763280248495,22.6512,142.45,142.42,1.7089639]
[1763280248699,0.7,142.44,142.39,7.0227882]
[1763280248875,0.7,142.44,142.41,1.7089639]
[1763280249079,0.7,142.44,142.4,2.3789639]
[1763280249475,0.7,142.44,142.41,0.67]
[1763280249698,0.7,142.44,142.41,2.3789639]
[1763280250004,25.0601639,142.45,142.41,2.3789639]
[1763280250508,25.0601639,142.45,142.41,0.67]
[1763280250709,0.7,142.44,142.41,0.67]
[1763280250881,0.7,142.44,142.41,10.3594052]
[1763280251082,0.7,142.44,142.41,3.33754317]
[1763280251595,0.7,142.44,142.41,10.35943719]
[1763280251795,0.7,142.44,142.41,3.33754317]
[1763280252402,3.36754317,142.44,142.39,3.33754317]
[1763280252702,3.36754317,142.44,142.39,2.66754317]
[1763280252881,0.7,142.43,142.39,2.66754317]
[1763280253086,0.7,142.43,142.39,3.33754317]
[1763280253283,0.7,142.43,142.4,0.65]
[1763280253483,2.66754317,142.44,142.4,0.65]
[1763280253701,3.36754317,142.44,142.4,0.65]
[1763280256394,3.33754317,142.43,142.4,0.65]
[1763280256589,2.66754317,142.43,142.4,0.65]
[1763280256795,3.33754317,142.44,142.4,0.65]
[1763280259919,3.33754317,142.44,142.4,10.33990799]
[1763280260134,129.51874317,142.45,142.41,2.66754317]
[1763280260293,130.18874317,142.45,142.41,3.33754317]
[1763280260613,104.2,142.45,142.42,0.67]
[1763280260818,104.2,142.45,142.43,2.66754317]
[1763280261021,104.2,142.46,142.43,2.66754317]
[1763280261196,104.87,142.46,142.43,2.66754317]
[1763280261594,104.2,142.46,142.44,0.67]
[1763280262111,104.2,142.46,142.41,24.5766921]
[1763280262112,104.87,142.46,142.42,3.33754317]
[1763280262613,104.2,142.46,142.42,3.33754317]
[1763280262813,104.87,142.46,142.42,10.35881036]
[1763280263205,104.87,142.46,142.43,2.66754317]
[1763280264212,104.87,142.46,142.42,10.35881036]
[1763280264504,0.67,142.45,142.42,10.35881036]
[1763280265222,104.2,142.46,142.42,10.35881036]
[1763280265413,104.87,142.46,142.42,10.35881036]
[1763280268321,0.67,142.45,142.42,10.35881036]
[1763280269009,0.67,142.45,142.42,9.68881036]
[1763280269324,0.67,142.45,142.42,7.02126719]
[1763280270421,0.67,142.45,142.42,2.66754317]
[1763280270617,0.67,142.45,142.41,9.68931306]
[1763280270819,0.67,142.45,142.41,7.02176989]
[1763280271003,0.67,142.45,142.41,9.68931306]
[1763280271432,0.67,142.45,142.41,10.35931306]
[1763280272225,0.67,142.45,142.42,0.67]
[1763280272405,0.67,142.44,142.41,2.66754317]
[1763280272599,0.67,142.44,142.37,10.45882769]
[1763280272600,2.66754317,142.42,142.36,0.1]
[1763280272823,2.66754317,142.42,142.37,2.66754317]
[1763280273000,0.67,142.41,142.37,2.66754317]
[1763280273207,0.67,142.41,142.38,2.66754317]
[1763280274153,0.67,142.41,142.37,2.66754317]
[1763280274626,0.67,142.41,142.37,9.69133841]
[1763280275014,0.67,142.41,142.36,0.77]
[1763280275015,0.67,142.41,142.36,0.1]
[1763280275227,2.66754317,142.4,142.36,2.76754317]
[1763280275526,0.67,142.39,142.37,2.66754317]
[1763280276203,0.67,142.39,142.36,2.76754317]
[1763280276599,0.67,142.39,142.36,0.1]
[1763280276824,0.67,142.39,142.36,2.76754317]
[1763280277024,0.67,142.39,142.36,9.79197516]
[1763280278033,0.67,142.39,142.36,2.76754317]
[1763280279622,0.67,142.39,142.36,0.1]
[1763280279623,0.17,142.39,142.36,0.1]
[1763280279799,104.2,142.4,142.36,2.76754317]
[1763280281537,0.67,142.39,142.36,2.76754317]
[1763280282509,0.67,142.39,142.36,3.43754317]
[1763280283029,0.67,142.39,142.36,10.46171214]
[1763280283219,0.67,142.39,142.37,2.66754317]
[1763280283418,22.6512,142.38,142.37,2.66754317]
[1763280284634,22.6512,142.38,142.36,10.50171214]
[1763280285331,22.6512,142.38,142.36,9.79171214]
[1763280285545,22.6512,142.38,142.37,0.71]
[1763280287545,22.6512,142.38,142.37,7.73395167]
[1763280287748,22.6512,142.38,142.37,7.02395167]
[1763280288041,22.6512,142.38,142.37,7.73395167]
[1763280288246,22.6512,142.38,142.37,7.02395167]
[1763280288624,23.3412,142.38,142.36,0.1]
[1763280288852,26.00874317,142.37,142.36,0.1]
[1763280291520,25.31874317,142.37,142.36,0.1]
[1763280291748,26.00874317,142.37,142.36,0.1]
[1763280292330,22.6512,142.36,142.33,0.1]
[1763280292640,2.66754317,142.34,142.33,0.1]
[1763280293045,3.35754317,142.34,142.33,0.1]
[1763280294630,113.98882769,142.39,142.33,0.1]
[1763280294631,2.66754317,142.36,142.33,7.83588073]
[1763280295020,25.31874317,142.35,142.33,7.83588073]
[1763280295225,2.66754317,142.36,142.34,0.71]
[1763280295730,25.31874317,142.36,142.34,0.71]
[1763280297559,22.6512,142.36,142.34,0.71]
[1763280297740,2.66754317,142.35,142.34,0.71]
[1763280299238,25.31874317,142.35,142.34,0.71]
[1763280299727,25.31874317,142.35,142.33,7.12588073]
[1763280299932,25.31874317,142.35,142.33,0.81]
[1763280300151,25.31874317,142.35,142.33,7.83590525]
[1763280300653,25.31874317,142.35,142.34,0.71]
[1763280301161,25.31874317,142.35,142.33,7.12590525]
[1763280301327,3.35754317,142.34,142.33,0.1]
[1763280302554,26.00874317,142.34,142.33,0.1]
[1763280304059,25.31874317,142.34,142.33,0.1]
[1763280305979,26.00874317,142.34,142.33,0.1]
[1763280306384,25.31874317,142.34,142.33,0.1]
[1763280309371,26.00874317,142.34,142.33,0.1]
[1763280310063,28.67628634,142.34,142.33,0.1]
[1763280310271,26.00874317,142.34,142.33,0.1]
[1763280310455,28.67628634,142.34,142.33,0.1]
[1763280311358,38.46511403,142.34,142.33,0.1]
[1763280312082,26.00874317,142.34,142.33,0.1]
[1763280312264,23.3412,142.34,142.33,0.1]
[1763280312464,26.00874317,142.34,142.33,0.1]
[1763280312667,26.00874317,142.34,142.31,0.1]
[1763280312668,9.78882769,142.33,142.31,0.1]
[1763280312867,22.6512,142.3,142.29,0.1]
[1763280313068,24.36283385,142.3,142.29,0.1]
[1763280313268,25.05283385,142.3,142.29,0.1]
[1763280314275,0.69,142.3,142.27,0.1]
[1763280314474,1.71163385,142.28,142.27,0.1]
[1763280314983,4.1232677,142.28,142.27,0.1]
[1763280315284,9.25816925,142.28,142.26,0.1]
[1763280315487,9.25816925,142.27,142.26,0.1]
[1763280316763,2.41163385,142.27,142.26,0.1]
[1763280317177,22.6512,142.29,142.26,0.1]
[1763280317376,1.71163385,142.27,142.26,0.76]
[1763280317880,104.2,142.28,142.26,7.78931285]
[1763280318084,105.91163385,142.28,142.26,7.78931285]
[1763280318386,1.71163385,142.27,142.26,0.1]
[1763280320272,2.41163385,142.27,142.26,0.1]
[1763280320462,1.71163385,142.27,142.26,0.76]
[1763280320662,1.71163385,142.27,142.26,7.78938282]
[1763280322964,1.71163385,142.27,142.26,0.1]
[1763280326282,1.71163385,142.27,142.26,0.76]
[1763280326486,1.71163385,142.27,142.26,7.78938282]
[1763280326683,105.91163385,142.28,142.26,7.78938282]
[1763280326878,105.91163385,142.28,142.27,0.66]
[1763280327083,0.7,142.31,142.27,0.66]
[1763280327286,1.71163385,142.3,142.27,0.66]
[1763280327480,24.36283385,142.29,142.27,0.66]
[1763280327679,1.71163385,142.31,142.27,0.66]
[1763280327880,104.2,142.32,142.29,1.71163385]
[1763280328081,105.91163385,142.32,142.27,2.37163385]
[1763280328267,104.2,142.32,142.28,1.71163385]
[1763280328467,1.71163385,142.34,142.29,1.71163385]
[1763280328671,1.71163385,142.34,142.29,2.37163385]
[1763280328966,24.36283385,142.34,142.31,7.02691307]
[1763280329183,1.71163385,142.32,142.3,7.68724434]
[1763280329590,1.71163385,142.33,142.31,0.66]
[1763280331268,1.71163385,142.33,142.31,7.68682961]
[1763280332477,23.3512,142.34,142.31,7.68682961]
[1763280332791,1.71163385,142.33,142.31,0.66]
[1763280333470,1.71163385,142.33,142.31,7.68674903]
[1763280337795,2.41163385,142.33,142.29,25.25707296]
[1763280337997,2.41163385,142.33,142.3,0.66]
[1763280338296,1.71163385,142.33,142.3,0.66]
[1763280339007,1.71163385,142.32,142.3,0.66]
[1763280339194,1.71163385,142.31,142.28,0.66]
[1763280339380,1.71163385,142.31,142.28,7.688375]
[1763280339580,1.71163385,142.3,142.28,0.66]
[1763280339896,0.7,142.31,142.28,0.66]
[1763280339897,1.71163385,142.29,142.28,0.66]
[1763280341400,1.71163385,142.29,142.27,7.68873556]
[1763280341599,22.6512,142.29,142.27,7.68873556]
[1763280341799,22.6512,142.29,142.27,0.66]
[1763280342399,22.6512,142.29,142.27,7.68885181]
[1763280342913,22.6512,142.29,142.27,7.02885181]
[1763280343120,22.6512,142.29,142.28,0.66]
[1763280343715,22.6512,142.29,142.27,7.02885181]
[1763280344031,22.6512,142.29,142.27,7.70885181]
[1763280344315,22.6512,142.29,142.26,7.12929312]
[1763280344524,22.6512,142.29,142.27,0.68]
[1763280344730,25.02283385,142.28,142.26,0.1]
[1763280345028,1.71163385,142.27,142.26,0.1]
[1763280346593,23.3112,142.28,142.26,0.1]
[1763280346797,1.71163385,142.27,142.26,0.1]
[1763280348308,2.37163385,142.27,142.26,0.1]
[1763280348504,1.71163385,142.27,142.26,0.1]
[1763280348692,106.57163385,142.27,142.26,0.1]
[1763280350102,104.2,142.27,142.26,0.1]
[1763280350320,105.91163385,142.27,142.26,0.78]
[1763280350507,105.91163385,142.27,142.26,0.1]
[1763280358621,106.57163385,142.27,142.26,0.1]
[1763280360523,108.2832677,142.27,142.26,0.1]
[1763280361033,106.57163385,142.27,142.26,0.1]
[1763280361206,22.6512,142.29,142.26,0.1]
[1763280361407,2.37163385,142.27,142.26,0.1]
[1763280361728,1.71163385,142.27,142.26,0.1]
[1763280362430,0.66,142.28,142.26,0.1]
[1763280362632,107.6232677,142.27,142.26,0.1]
[1763280362973,24.36283385,142.23,142.22,0.1]
[1763280363238,25.02283385,142.23,142.22,0.1]
[1763280363418,26.0744677,142.22,142.21,0.1]
[1763280363613,25.02283385,142.22,142.21,0.1]
[1763280364526,26.7344677,142.22,142.21,0.1]
[1763280364925,25.02283385,142.22,142.21,0.1]
[1763280365540,26.7344677,142.22,142.21,0.1]
[1763280366050,22.6512,142.22,142.21,0.1]
[1763280366249,24.36283385,142.22,142.21,0.78]
[1763280367441,2.37163385,142.22,142.21,0.1]
[1763280368024,4.0832677,142.22,142.21,0.1]
[1763280368615,108.2832677,142.22,142.21,0.1]
[1763280369314,19.00699694,142.22,142.2,0.1]
[1763280369541,9.21816925,142.21,142.2,0.1]
[1763280370312,9.21816925,142.21,142.18,0.1]
[1763280370313,22.6512,142.19,142.18,0.1]
[1763280370542,1.71163385,142.19,142.18,0.1]
[1763280370838,25.02283385,142.19,142.18,0.1]
[1763280372810,104.2,142.21,142.18,0.1]
[1763280373150,1.71163385,142.19,142.18,0.1]
[1763280373520,2.41163385,142.19,142.18,0.1]
[1763280374926,26.02944085,142.19,142.18,0.1]
[1763280376245,2.67824085,142.19,142.18,0.1]
[1763280376429,2.67824085,142.19,142.18,0.77]
[1763280380262,2.67824085,142.19,142.18,0.1]
[1763280380429,3.36824085,142.19,142.18,0.1]
[1763280380629,2.67824085,142.19,142.18,0.1]
[1763280383351,3.36824085,142.19,142.18,0.1]
[1763280396379,2.67824085,142.19,142.18,0.77]
[1763280396951,2.67824085,142.19,142.18,0.1]
[1763280400362,2.67824085,142.19,142.18,0.77]
[1763280401066,2.67824085,142.2,142.18,7.80333802]
[1763280401473,2.67824085,142.2,142.19,0.67]
[1763280401860,22.6512,142.22,142.19,0.67]
[1763280402057,2.67824085,142.22,142.19,0.67]
[1763280403181,2.67824085,142.22,142.19,7.70275621]
[1763280403684,2.67824085,142.21,142.2,0.68]
[1763280404288,2.67824085,142.21,142.19,0.68]
[1763280404668,2.67824085,142.2,142.19,0.68]
[1763280406059,25.32944085,142.2,142.19,0.68]
[1763280406790,25.32944085,142.2,142.18,0.1]
[1763280406791,22.6512,142.19,142.18,0.1]
[1763280406986,25.32944085,142.19,142.18,0.78]
[1763280407979,22.6512,142.19,142.18,0.78]
[1763280409765,22.6512,142.19,142.18,7.81333802]
[1763280410066,22.6512,142.19,142.18,0.78]
[1763280412893,25.32944085,142.19,142.18,0.78]
[1763280414194,22.6512,142.19,142.18,0.78]
[1763280418294,25.32944085,142.19,142.18,0.78]
[1763280418884,22.6512,142.19,142.18,0.78]
[1763280419801,25.32944085,142.19,142.18,0.78]
[1763280420601,3.32824085,142.19,142.18,0.1]
[1763280420826,3.32824085,142.19,142.16,0.1]
[1763280420827,22.6512,142.17,142.16,0.1]
[1763280421109,25.97944085,142.17,142.16,0.1]
[1763280421305,9.78882769,142.16,142.11,0.1]
[1763280421625,25.32944085,142.12,142.11,0.1]
[1763280421980,25.97944085,142.12,142.11,0.1]
[1763280423481,22.6512,142.11,142.07,0.6254]
[1763280423802,2.67824085,142.09,142.07,7.66417653]
[1763280424203,2.67824085,142.09,142.07,7.03877653]
[1763280425088,2.67824085,142.09,142.06,17.59747372]
[1763280425709,2.67824085,142.09,142.07,0.68]
[1763280426282,2.67824085,142.1,142.07,0.68]
[1763280427116,2.67824085,142.1,142.08,7.03828828]
[1763280427586,2.67824085,142.1,142.08,7.71828828]
[1763280428192,25.32944085,142.1,142.08,7.71828828]
[1763280430119,2.67824085,142.09,142.08,7.71828828]
[1763280433815,22.6512,142.1,142.08,7.71828828]
[1763280434000,2.67824085,142.09,142.08,7.71828828]
[1763280435590,22.6512,142.1,142.07,7.0386397]
[1763280435793,2.67824085,142.09,142.07,7.0386397]
[1763280436111,2.67824085,142.09,142.08,0.68]
[1763280436891,22.6512,142.1,142.08,0.68]
[1763280437087,1.71555471,142.09,142.08,0.68]
[1763280439227,24.36675471,142.1,142.08,0.68]
[1763280441807,24.36675471,142.1,142.08,7.71816973]
[1763280442419,24.36675471,142.1,142.09,0.68]
[1763280442608,24.36675471,142.1,142.08,7.03816973]
[1763280442806,24.36675471,142.1,142.08,7.71816973]
[1763280443008,24.36675471,142.1,142.08,0.68]
[1763280443212,22.6512,142.1,142.09,0.68]
[1763280443510,24.36675471,142.1,142.09,0.68]
[1763280443916,24.36675471,142.1,142.06,29.90318959]
[1763280444109,24.36675471,142.1,142.08,0.68]
[1763280445011,105.91555471,142.12,142.09,7.03779294]
[1763280445206,1.71555471,142.13,142.09,26.34783002]
[1763280445402,22.6512,142.12,142.1,0.68]
[1763280446325,24.36675471,142.12,142.1,0.68]
[1763280446640,1.71555471,142.11,142.09,7.03779294]
[1763280446809,24.36675471,142.12,142.09,7.03779294]
[1763280447137,24.36675471,142.12,142.1,7.7168619]
[1763280450099,24.36675471,142.12,142.1,7.0368619]
[1763280450426,24.36675471,142.12,142.11,0.68]
[1763280450818,24.36675471,142.12,142.11,7.71680247]
[1763280451732,1.71555471,142.13,142.11,7.71680247]
[1763280452040,104.2,142.15,142.12,2.39555471]
[1763280452207,104.2,142.15,142.13,0.68]
[1763280452740,104.2,142.15,142.13,7.71562578]
[1763280453435,24.36675471,142.16,142.13,7.71562578]
[1763280453640,24.36675471,142.16,142.14,0.68]
[1763280455151,24.36675471,142.16,142.14,7.71502278]
[1763280455926,25.06675471,142.16,142.14,7.03502278]
[1763280456615,25.06675471,142.16,142.14,7.71502278]
[1763280456842,24.36675471,142.16,142.14,7.03502278]
[1763280457142,25.06675471,142.16,142.14,7.03502278]
[1763280457320,1.71555471,142.15,142.13,7.71550915]
[1763280457746,1.71555471,142.14,142.13,0.68]
[1763280458853,1.71555471,142.14,142.13,7.71581228]
[1763280461638,23.3512,142.16,142.13,7.71581228]
[1763280461845,1.71555471,142.15,142.13,7.71581228]
[1763280462332,1.71555471,142.15,142.13,7.03581228]
[1763280462530,1.71555471,142.14,142.13,7.03581228]
[1763280462741,1.71555471,142.14,142.12,7.0360788]
[1763280462937,1.71555471,142.14,142.12,7.7160788]
[1763280463542,23.3512,142.15,142.12,7.6860788]
[1763280463721,1.71555471,142.14,142.12,7.6860788]
[1763280466150,1.71555471,142.14,142.13,0.65]
[1763280466559,1.71555471,142.14,142.11,7.03680247]
[1763280466732,1.71555471,142.12,142.08,0.65]
[1763280466928,1.71555471,142.1,142.08,0.65]
[1763280468026,1.71555471,142.11,142.09,7.03779294]
[1763280468456,1.71555471,142.11,142.09,7.68779294]
[1763280469663,1.71555471,142.11,142.1,0.65]
[1763280470859,1.71555471,142.11,142.09,7.68779294]
[1763280471955,2.39555471,142.11,142.08,25.28346736]
[1763280473560,2.39555471,142.11,142.08,7.03828828]
[1763280473561,2.39555471,142.1,142.08,7.03828828]
[1763280473965,1.71555471,142.1,142.08,0.65]
[1763280474971,25.04675471,142.11,142.09,7.03779294]
[1763280476682,23.3312,142.11,142.09,7.03779294]
[1763280476970,25.04675471,142.11,142.09,7.03779294]
[1763280478844,24.36675471,142.11,142.09,7.03779294]
[1763280479060,104.2,142.13,142.11,7.03680247]
[1763280479270,104.2,142.13,142.12,0.65]
[1763280479870,104.2,142.13,142.11,7.03680247]
[1763280480062,104.2,142.13,142.11,7.68680247]
[1763280482063,104.2,142.13,142.11,7.03680247]
[1763280482257,104.2,142.13,142.12,0.65]
[1763280482977,1.71555471,142.17,142.12,2.36555471]
[1763280483176,1.71555471,142.18,142.14,1.71555471]
[1763280483678,2.39555471,142.18,142.15,0.65]
[1763280483862,22.6512,142.17,142.16,7.03432751]
[1763280484058,24.36675471,142.17,142.15,0.65]
[1763280484269,0.68,142.16,142.13,0.65]
[1763280484567,2.39555471,142.17,142.14,0.65]
[1763280484956,1.71555471,142.17,142.14,0.65]
[1763280485273,1.71555471,142.18,142.14,0.65]
[1763280485579,2.39555471,142.18,142.14,0.65]
[1763280485961,2.39555471,142.18,142.15,7.03482237]
[1763280486365,2.39555471,142.18,142.15,7.68482237]
[1763280487962,22.6512,142.17,142.16,0.65]
[1763280488173,105.91555471,142.19,142.16,0.65]
[1763280488760,106.59555471,142.19,142.16,0.65]
[1763280488963,106.59555471,142.19,142.17,7.03383273]
[1763280490296,2.39555471,142.18,142.15,28.17110426]
[1763280490475,0.68,142.18,142.15,7.68466857]
[1763280490681,105.91555471,142.19,142.16,0.65]
[1763280490984,106.59555471,142.19,142.16,0.65]
[1763280491290,106.59555471,142.19,142.17,7.03383273]
[1763280492371,0.68,142.18,142.16,7.03432751]
[1763280492570,2.39555471,142.18,142.16,7.03432751]
[1763280492982,2.39555471,142.17,142.15,28.17106872]
[1763280493169,1.71555471,142.16,142.15,7.03463303]
[1763280493369,2.37555471,142.16,142.15,7.03463303]
[1763280493880,1.71555471,142.17,142.15,7.03463303]
[1763280494059,2.42555471,142.17,142.15,7.03463303]
[1763280494260,2.42555471,142.18,142.15,7.69463303]
[1763280496563,2.42555471,142.18,142.15,7.03463303]
[1763280496883,3.38718597,142.18,142.15,7.03463303]
[1763280497788,3.38718597,142.18,142.15,7.69463303]
[1763280499490,3.38718597,142.18,142.15,7.03463303]
[1763280500085,0.71,142.17,142.15,7.03463303]
[1763280501764,3.38718597,142.17,142.15,7.03463303]
[1763280501969,3.38718597,142.17,142.15,7.69463303]
[1763280502172,0.71,142.17,142.15,7.69463303]
[1763280502494,23.3612,142.16,142.15,7.03463303]
[1763280502681,22.6512,142.16,142.15,7.03463303]
[1763280503987,23.3612,142.16,142.15,7.03463303]
[1763280504204,26.03838597,142.16,142.13,7.6953667]
[1763280504491,0.71,142.15,142.13,7.6953667]
[1763280505100,26.03838597,142.16,142.13,7.6953667]
[1763280506487,23.3612,142.16,142.13,7.6953667]
[1763280506786,26.03838597,142.16,142.13,7.6953667]
[1763280507395,23.3612,142.16,142.13,7.6953667]
[1763280508104,0.71,142.15,142.13,7.0353667]
[1763280508302,25.32838597,142.16,142.13,7.6953667]
[1763280508505,23.3612,142.16,142.13,7.6953667]
[1763280508806,23.3612,142.16,142.13,25.28489741]
[1763280508975,22.6512,142.16,142.14,0.66]
[1763280509177,106.87718597,142.18,142.14,3.33718597]
[1763280509404,104.2,142.18,142.14,3.33718597]
[1763280509600,104.2,142.18,142.16,2.67718597]
[1763280510208,104.2,142.18,142.17,7.03383273]
[1763280510891,104.2,142.18,142.16,7.69411658]
[1763280512788,104.91,142.18,142.16,7.03411658]
[1763280513087,104.2,142.18,142.16,7.03411658]
[1763280513317,104.2,142.18,142.16,7.69411658]
[1763280514698,0.71,142.17,142.15,28.17108646]
[1763280514904,3.38718597,142.17,142.15,7.03465077]
[1763280515409,2.67718597,142.17,142.15,7.69465077]
[1763280516991,2.67718597,142.16,142.14,28.17303044]
[1763280517202,2.67718597,142.16,142.14,7.69510548]
[1763280518506,2.67718597,142.16,142.14,7.03510548]
[1763280518712,2.67718597,142.16,142.15,0.66]
[1763280518912,2.67718597,142.16,142.14,7.69510548]
[1763280519396,3.38718597,142.16,142.14,7.03510548]
[1763280523411,0.71,142.16,142.14,7.03510548]
[1763280525112,22.6512,142.15,142.13,21.82941443]
[1763280525320,22.6512,142.15,142.12,3.36718597]
[1763280525502,23.3412,142.15,142.12,21.83090412]
[1763280526016,23.3412,142.15,142.13,0.69]
[1763280526398,22.6512,142.15,142.13,0.69]
[1763280527522,0.69,142.14,142.12,28.17696905]
[1763280531018,0.69,142.14,142.11,20.95854359]
[1763280531019,2.67718597,142.13,142.09,0.69]
[1763280531203,2.67718597,142.1,142.03,17.70151638]
[1763280531407,2.67718597,142.08,142.06,21.14984666]
[1763280531707,2.67718597,142.07,142.06,21.14984666]
[1763280532207,2.67718597,142.07,142.04,7.72991347]
[1763280532208,3.36718597,142.07,142.04,0.69]
[1763280532415,3.36718597,142.07,142.05,0.69]
[1763280532416,2.67718597,142.07,142.05,0.69]
[1763280533299,3.36718597,142.08,142.05,0.69]
[1763280533515,3.36718597,142.08,142.05,7.72970584]
[1763280538203,0.69,142.07,142.05,7.72970584]
[1763280538520,23.3412,142.13,142.06,3.36718597]